bitfinex/quotes_BTCUSD_20250206
["timestamp","ask_amount","ask_price","bid_price","bid_amount"]
[1738809854931,0.00031986,97210.0,97209.0,0.60020593]
[1738809856152,0.00031986,97210.0,97209.0,0.64387726]
[1738809856410,0.00031986,97210.0,97209.0,0.65387726]
[1738809856962,0.00031986,97210.0,97209.0,1.67949617]
[1738809857385,0.00031986,97210.0,97209.0,2.00979617]
[1738809858087,8.6e-07,97210.0,97209.0,2.12242434]
[1738809858324,0.00022428,97234.0,97228.0,0.426376]
[1738809858574,0.0807,97258.0,97245.0,0.314249]
[1738809858799,0.08301215,97246.0,97245.0,0.98018232]
[1738809859026,9.556e-05,97246.0,97245.0,0.98018232]
[1738809859475,9.556e-05,97246.0,97245.0,0.94665415]
[1738809860366,9.556e-05,97246.0,97245.0,0.91459362]
[1738809860637,9.556e-05,97246.0,97245.0,0.93375079]
[1738809860852,9.556e-05,97246.0,97245.0,0.92375079]
[1738809862338,9.556e-05,97246.0,97245.0,0.92511262]
[1738809865411,9.556e-05,97246.0,97245.0,0.94607244]
[1738809867237,0.00031984,97246.0,97245.0,0.94607244]
[1738809868881,0.000262,97284.0,97283.0,0.02]
[1738809869091,0.0755,97320.0,97299.0,0.215551]
[1738809869303,0.0755,97320.0,97307.0,0.327151]
[1738809869528,0.0755,97320.0,97307.0,0.47720749]
[1738809869771,0.00068886,97308.0,97307.0,1.62240615]
[1738809870435,0.00068886,97308.0,97307.0,1.64308396]
[1738809872977,0.00068886,97308.0,97307.0,1.67646032]
[1738809875351,0.00068886,97308.0,97307.0,1.66938422]
[1738809875816,0.00068886,97308.0,97307.0,1.98968422]
[1738809876811,0.00068886,97308.0,97307.0,0.90842546]
[1738809878647,0.00068886,97308.0,97307.0,0.89774765]
[1738809881574,0.00068886,97308.0,97307.0,0.57744765]
[1738809883110,0.00068886,97308.0,97307.0,0.58817932]
[1738809883455,0.07678886,97308.0,97307.0,0.42744765]
[1738809883657,0.07678886,97308.0,97307.0,0.40671114]
[1738809888048,0.07678886,97308.0,97307.0,0.25256014]
[1738809888479,0.08313543,97308.0,97307.0,0.25256014]
[1738809890559,0.07678886,97308.0,97307.0,0.25256014]
[1738809891441,0.08311634,97308.0,97307.0,0.25256014]
[1738809893792,0.07678886,97308.0,97307.0,0.25256014]
[1738809894017,0.08311634,97308.0,97307.0,0.25256014]
[1738809894487,0.07678886,97308.0,97307.0,0.25256014]
[1738809899215,0.00068886,97308.0,97307.0,0.25256014]
[1738809901569,0.00068886,97308.0,97307.0,0.27556014]
[1738809901892,0.00068886,97308.0,97307.0,0.30736512]
[1738809903533,0.00068886,97308.0,97307.0,0.45736512]
[1738809903746,0.00068886,97308.0,97307.0,0.46785143]
[1738809910495,0.00068886,97308.0,97307.0,0.44485143]
[1738809914698,0.08338886,97308.0,97307.0,0.28436512]
[1738809914906,0.08338886,97308.0,97307.0,0.25256014]
[1738809915181,0.08971868,97308.0,97307.0,0.25256014]
[1738809915381,0.08338886,97308.0,97307.0,0.25256014]
[1738809915582,0.0897138,97308.0,97307.0,0.25256014]
[1738809921400,0.154151,97307.0,97306.0,0.03]
[1738809921607,0.285651,97307.0,97306.0,0.03]
[1738809921803,0.1315,97295.0,97294.0,0.00022407]
[1738809922233,0.29197263,97295.0,97294.0,0.00022407]
[1738809922589,0.13780263,97295.0,97294.0,0.00022407]
[1738809922801,0.29197263,97295.0,97294.0,0.00022407]
[1738809924983,0.34172549,97295.0,97294.0,0.00022407]
[1738809925344,0.29197263,97295.0,97294.0,0.00022407]
[1738809927634,0.30821097,97295.0,97294.0,0.00022407]
[1738809927832,0.31889174,97295.0,97294.0,0.00022407]
[1738809932199,0.64399174,97295.0,97294.0,0.00022407]
[1738809932627,0.47914097,97295.0,97294.0,0.00022407]
[1738809932827,0.63331097,97295.0,97294.0,0.00022407]
[1738809933181,0.61707263,97295.0,97294.0,0.00022407]
[1738809934379,0.46290263,97295.0,97294.0,0.00022407]
[1738809936493,0.46300933,97295.0,97294.0,0.00022407]
[1738809936698,0.61717933,97295.0,97294.0,0.00022407]
[1738809938059,0.29207933,97295.0,97294.0,0.00022407]
[1738809938737,0.31545058,97295.0,97294.0,0.00022407]
[1738809940820,0.33168124,97295.0,97294.0,0.00022407]
[1738809942866,0.58418489,97295.0,97294.0,0.00022407]
[1738809944116,0.90928489,97295.0,97294.0,0.00022407]
[1738809944356,0.9118827,97295.0,97294.0,0.00022407]
[1738809945389,0.80937905,97295.0,97294.0,0.00022407]
[1738809950508,0.9118827,97295.0,97294.0,0.00022407]
[1738809951344,0.9218827,97295.0,97294.0,0.00022407]
[1738809951566,1.02438635,97295.0,97294.0,0.00022407]
[1738809954526,0.9118827,97295.0,97294.0,0.00022407]
[1738809956322,0.80937905,97295.0,97294.0,0.00022407]
[1738809968134,0.20277905,97295.0,97294.0,0.00022407]
[1738809968371,0.04860905,97295.0,97294.0,0.00022407]
[1738809968580,0.20277905,97295.0,97294.0,0.00022407]
[1738809969929,0.17680999,97295.0,97294.0,0.00022407]
[1738809971090,0.17513729,97295.0,97294.0,0.00022407]
[1738809971806,0.15890663,97295.0,97294.0,0.00022407]
[1738809974452,0.00473663,97295.0,97294.0,0.00022407]
[1738809974668,0.00473663,97295.0,97294.0,0.33113129]
[1738809974877,0.0001067,97295.0,97294.0,0.37963129]
[1738809975319,0.0001067,97295.0,97294.0,0.39007163]
[1738809976471,0.0001067,97295.0,97294.0,0.37963129]
[1738809982189,0.0001067,97295.0,97294.0,0.40263129]
[1738809984015,0.0001067,97295.0,97294.0,0.37963129]
[1738809985619,0.0001067,97295.0,97294.0,0.40263129]
[1738809988826,0.0001067,97295.0,97294.0,0.37963129]
[1738809989027,0.0001067,97295.0,97294.0,0.30323129]
[1738809989886,0.0001067,97295.0,97294.0,0.40463129]
[1738809990823,0.0001067,97295.0,97294.0,0.42373327]
[1738809996289,0.0001067,97295.0,97294.0,0.57373327]
[1738809996495,0.0001067,97295.0,97294.0,0.91403327]
[1738809996699,0.0031152,97311.0,97310.0,0.253946]
[1738809996935,0.00325448,97311.0,97310.0,0.5125987]
[1738809998096,0.00325448,97311.0,97310.0,0.53170068]
[1738810001470,0.00325448,97311.0,97310.0,0.55193753]
[1738810003211,0.00325448,97311.0,97310.0,0.47513753]
[1738810003818,0.00325448,97311.0,97310.0,0.48550292]
[1738810004405,0.00325448,97311.0,97310.0,0.47513753]
[1738810004603,0.00336128,97311.0,97310.0,0.47513753]
[1738810006604,0.00336128,97311.0,97310.0,0.27775468]
[1738810008515,0.00336128,97311.0,97310.0,0.30075468]
[1738810008951,0.00336128,97311.0,97310.0,0.33264626]
[1738810016684,0.00336128,97311.0,97310.0,0.42447342]
[1738810019965,0.002944,97321.0,97311.0,0.023]
[1738810020181,0.002944,97321.0,97319.0,0.154131]
[1738810020402,0.002944,97321.0,97320.0,0.25623306]
[1738810021856,0.002944,97321.0,97320.0,0.28814653]
[1738810022276,0.002944,97321.0,97320.0,0.27533504]
[1738810022641,0.002944,97321.0,97320.0,0.29833504]
[1738810022836,0.002944,97321.0,97320.0,0.48024718]
[1738810023034,0.002944,97321.0,97320.0,1.50586609]
[1738810023744,0.002944,97321.0,97320.0,0.33024718]
[1738810023987,0.002944,97321.0,97320.0,0.30724718]
[1738810024214,0.002944,97321.0,97320.0,0.27533504]
[1738810024657,0.00762231,97321.0,97320.0,0.27533504]
[1738810024852,0.002944,97321.0,97320.0,0.27533504]
[1738810027920,0.002944,97321.0,97320.0,0.30727659]
[1738810028084,0.002944,97321.0,97320.0,0.27533504]
[1738810028482,0.002944,97321.0,97320.0,0.30728401]
[1738810030352,0.0030508,97321.0,97320.0,0.30728401]
[1738810031899,0.0030508,97321.0,97320.0,0.39919097]
[1738810032938,0.0030508,97321.0,97320.0,0.42219097]
[1738810034912,0.0030508,97321.0,97320.0,0.33028401]
[1738810035113,0.083,97339.0,97331.0,0.154112]
[1738810035324,0.00514988,97338.0,97332.0,0.10250365]
[1738810035640,0.083,97339.0,97332.0,0.25834036]
[1738810035954,0.083,97339.0,97333.0,0.15329738]
[1738810036157,0.083,97339.0,97334.0,0.10250365]
[1738810036395,0.083,97339.0,97334.0,0.25580103]
[1738810036618,0.00538935,97338.0,97335.0,0.15329738]
[1738810036900,0.083,97339.0,97336.0,0.10250365]
[1738810037063,0.00538935,97338.0,97336.0,0.25546891]
[1738810037269,0.00538935,97338.0,97337.0,0.15296526]
[1738810037465,0.00538935,97338.0,97337.0,0.27457089]
[1738810037668,0.0801,97338.0,97337.0,0.01910198]
[1738810037898,0.0854895,97338.0,97337.0,0.01910198]
[1738810039777,0.2395915,97338.0,97337.0,0.01910198]
[1738810043458,0.154105,97336.0,97329.0,0.09205489]
[1738810043656,0.2395925,97338.0,97330.0,0.10250365]
[1738810043896,0.2395925,97338.0,97330.0,0.25632888]
[1738810044240,0.154104,97337.0,97331.0,0.15382523]
[1738810044481,0.0854895,97338.0,97332.0,0.10250365]
[1738810044681,0.00539056,97336.0,97332.0,0.10250365]
[1738810044930,0.00539048,97335.0,97332.0,0.10250365]
[1738810045172,0.154105,97336.0,97332.0,0.10250365]
[1738810045411,0.0053904,97334.0,97332.0,0.10250365]
[1738810045658,0.154104,97337.0,97332.0,0.10250365]
[1738810045825,0.00538851,97333.0,97332.0,0.10250365]
[1738810046063,0.154104,97337.0,97332.0,0.19455854]
[1738810046215,0.00538791,97333.0,97332.0,0.19455854]
[1738810046470,0.00538791,97333.0,97332.0,0.35409326]
[1738810046658,0.154104,97337.0,97332.0,0.35409326]
[1738810047049,0.15949414,97336.0,97332.0,0.19455854]
[1738810047261,0.00538814,97336.0,97332.0,0.19455854]
[1738810047689,0.154104,97337.0,97332.0,0.19455854]
[1738810047949,0.0053875,97335.0,97332.0,0.09205489]
[1738810048171,0.15949643,97334.0,97332.0,0.09205489]
[1738810049241,0.15411,97333.0,97328.0,0.09205489]
[1738810049467,0.15411,97333.0,97329.0,0.10250365]
[1738810049674,0.00538723,97332.0,97329.0,0.10250365]
[1738810050288,0.154108,97335.0,97329.0,0.10250365]
[1738810050501,0.00538739,97334.0,97329.0,0.10250365]
[1738810051004,0.154108,97334.0,97329.0,0.10250365]
[1738810051504,0.00538593,97333.0,97329.0,0.10250365]
[1738810053142,0.15949693,97333.0,97329.0,0.10250365]
[1738810056930,0.00538593,97333.0,97329.0,0.10250365]
[1738810057133,0.0801,97338.0,97329.0,0.10250365]
[1738810057336,0.00538668,97337.0,97329.0,0.10250365]
[1738810057639,0.15411,97333.0,97329.0,0.10250365]
[1738810057973,0.01852958,97332.0,97329.0,0.10250365]
[1738810058175,0.154123,97325.0,97323.0,0.09205489]
[1738810058374,0.154123,97325.0,97323.0,0.19455854]
[1738810058572,0.154123,97325.0,97324.0,0.15696856]
[1738810058795,0.0456,97326.0,97323.0,0.19455854]
[1738810059207,0.199722,97326.0,97323.0,0.19455854]
[1738810061135,0.199722,97326.0,97323.0,0.10250365]
[1738810062240,0.154123,97325.0,97323.0,0.10250365]
[1738810062427,0.1161734,97326.0,97323.0,0.10250365]
[1738810063198,0.0456,97326.0,97323.0,0.10250365]
[1738810067356,0.00538508,97325.0,97323.0,0.10250365]
[1738810068607,0.15950808,97325.0,97323.0,0.10250365]
[1738810069809,0.00538508,97325.0,97323.0,0.10250365]
[1738810070247,0.15950808,97325.0,97323.0,0.10250365]
[1738810072007,0.154124,97324.0,97323.0,0.10250365]
[1738810072225,0.154127,97322.0,97321.0,0.00022428]
[1738810072668,0.15951084,97322.0,97321.0,0.00022428]
[1738810073533,0.00538384,97322.0,97321.0,0.00022428]
[1738810073752,0.154127,97322.0,97321.0,0.00022428]
[1738810073946,0.15950987,97322.0,97321.0,0.00022428]
[1738810080470,0.15950987,97322.0,97321.0,0.10272793]
[1738810080471,0.00538287,97322.0,97321.0,0.10272793]
[1738810080937,0.0001068,97326.0,97321.0,0.10272793]
[1738810081157,0.0001068,97326.0,97322.0,0.10250365]
[1738810081374,0.00537954,97325.0,97322.0,0.10250365]
[1738810082625,0.00537954,97325.0,97321.0,0.00022428]
[1738810082861,0.230324,97324.0,97321.0,0.10272793]
[1738810083314,0.00537938,97323.0,97321.0,0.10272793]
[1738810083962,0.0001068,97326.0,97321.0,0.10272793]
[1738810084187,0.00537968,97322.0,97321.0,0.10272793]
[1738810084377,0.0001068,97326.0,97321.0,0.10272793]
[1738810084724,0.00537991,97325.0,97321.0,0.10272793]
[1738810087180,0.00537991,97325.0,97323.0,0.154125]
[1738810087383,0.0001068,97326.0,97324.0,0.10250365]
[1738810087611,0.00538028,97325.0,97324.0,0.10250365]
[1738810087967,0.0001068,97326.0,97324.0,0.10250365]
[1738810088167,0.00538028,97325.0,97324.0,0.10250365]
[1738810088368,0.0001068,97326.0,97324.0,0.10250365]
[1738810088568,0.00538028,97325.0,97324.0,0.10250365]
[1738810088808,0.0001068,97326.0,97324.0,0.10250365]
[1738810089168,0.00537967,97325.0,97324.0,0.25662765]
[1738810089371,0.0001068,97326.0,97324.0,0.40968884]
[1738810089654,0.0001068,97326.0,97325.0,0.15306119]
[1738810089826,0.0001068,97326.0,97325.0,0.25556484]
[1738810094094,0.154125,97323.0,97322.0,0.09205489]
[1738810094376,0.23521203,97323.0,97322.0,0.09205489]
[1738810094974,0.24547573,97323.0,97322.0,0.09205489]
[1738810095174,0.29237573,97323.0,97322.0,0.09205489]
[1738810095576,0.29237573,97323.0,97321.0,0.09227917]
[1738810095777,0.07515208,97322.0,97321.0,0.09227917]
[1738810096050,0.08053599,97322.0,97321.0,0.09227917]
[1738810096255,0.30783599,97322.0,97321.0,0.09227917]
[1738810096461,0.63293599,97322.0,97321.0,0.09227917]
[1738810096595,0.79493964,97322.0,97321.0,0.09227917]
[1738810097672,0.81203614,97322.0,97321.0,0.09227917]
[1738810098345,0.80203614,97322.0,97321.0,0.09227917]
[1738810098788,0.81203614,97322.0,97321.0,0.09227917]
[1738810098990,0.79493964,97322.0,97321.0,0.09227917]
[1738810099489,0.79493964,97322.0,97321.0,0.00022428]
[1738810101279,0.78493964,97322.0,97321.0,0.00022428]
[1738810101675,0.79493964,97322.0,97321.0,0.00022428]
[1738810104802,0.81200094,97322.0,97321.0,0.00022428]
[1738810105239,0.73684886,97322.0,97321.0,0.00022428]
[1738810109545,0.72684886,97322.0,97321.0,0.00022428]
[1738810109967,0.62434521,97322.0,97321.0,0.00022428]
[1738810110327,0.60728391,97322.0,97321.0,0.00022428]
[1738810113962,0.60739071,97322.0,97321.0,0.00022428]
[1738810115561,0.69395421,97322.0,97321.0,0.00022428]
[1738810115766,0.28229071,97322.0,97321.0,0.00022428]
[1738810117676,0.23279071,97322.0,97321.0,0.00022428]
[1738810119064,0.15549071,97322.0,97321.0,0.00022428]
[1738810119456,0.00549071,97322.0,97321.0,0.00022428]
[1738810124154,0.06257254,97322.0,97321.0,0.00022428]
[1738810125136,0.00549071,97322.0,97321.0,0.00022428]
[1738810128833,0.00549071,97322.0,97321.0,0.04652428]
[1738810129064,0.0001068,97322.0,97321.0,0.22722793]
[1738810129924,0.0001068,97322.0,97321.0,0.10272793]
[1738810130126,0.1542338,97322.0,97321.0,0.10272793]
[1738810130531,0.15960551,97322.0,97321.0,0.10272793]
[1738810130731,0.00547851,97322.0,97321.0,0.10272793]
[1738810131129,0.0001068,97322.0,97321.0,0.10272793]
[1738810131331,0.00547851,97322.0,97321.0,0.10272793]
[1738810131540,0.0001068,97322.0,97321.0,0.10272793]
[1738810131749,0.00547851,97322.0,97321.0,0.10272793]
[1738810132152,0.00547851,97322.0,97321.0,0.00022428]
[1738810135199,0.06357255,97322.0,97321.0,0.00022428]
[1738810136662,0.21357255,97322.0,97321.0,0.00022428]
[1738810136980,0.29617255,97322.0,97321.0,0.00022428]
[1738810137636,0.23807851,97322.0,97321.0,0.00022428]
[1738810139271,0.00547851,97322.0,97321.0,0.10272793]
[1738810139720,0.0001068,97322.0,97321.0,0.10272793]
[1738810140506,0.00548235,97322.0,97321.0,0.10272793]
[1738810140727,0.0001068,97322.0,97321.0,0.10272793]
[1738810140929,0.00548235,97322.0,97321.0,0.10272793]
[1738810141130,0.0001068,97322.0,97321.0,0.10272793]
[1738810141355,0.00548307,97322.0,97321.0,0.10272793]
[1738810141563,0.0001068,97322.0,97321.0,0.10272793]
[1738810141759,0.15961007,97322.0,97321.0,0.10272793]
[1738810141962,0.1542338,97322.0,97321.0,0.10272793]
[1738810142202,0.00548307,97322.0,97321.0,0.10272793]
[1738810143084,0.0001068,97322.0,97321.0,0.10272793]
[1738810148674,0.00548731,97322.0,97321.0,0.10272793]
[1738810149325,0.0001068,97322.0,97321.0,0.10272793]
[1738810151107,0.00548708,97322.0,97321.0,0.10272793]
[1738810151265,0.0001068,97322.0,97321.0,0.10272793]
[1738810151477,0.00548708,97322.0,97321.0,0.10272793]
[1738810152496,0.0001068,97322.0,97321.0,0.10272793]
[1738810154595,0.00548727,97322.0,97321.0,0.10272793]
[1738810160793,0.00548727,97322.0,97321.0,0.25615602]
[1738810160994,0.0001068,97322.0,97321.0,0.10272793]
[1738810161385,0.00548578,97322.0,97321.0,0.10272793]
[1738810161593,0.0001068,97322.0,97321.0,0.10272793]
[1738810161778,0.00548578,97322.0,97321.0,0.10272793]
[1738810161979,0.0001068,97322.0,97321.0,0.10272793]
[1738810162215,0.00548578,97322.0,97321.0,0.10272793]
[1738810162433,0.0001068,97322.0,97321.0,0.10272793]
[1738810162630,0.00548632,97322.0,97321.0,0.2531653]
[1738810162834,0.0001068,97322.0,97321.0,0.25889508]
[1738810163205,0.00548632,97322.0,97321.0,0.25889508]
[1738810166881,0.0001068,97322.0,97321.0,0.25889508]
[1738810167600,0.00548595,97322.0,97321.0,0.25889508]
[1738810169614,0.0001068,97322.0,97321.0,0.25889508]
[1738810169819,0.00548595,97322.0,97321.0,0.25889508]
[1738810170228,0.0001068,97322.0,97321.0,0.34059508]
[1738810170662,0.0001068,97322.0,97321.0,0.38909508]
[1738810172468,0.0001068,97322.0,97321.0,0.4210987]
[1738810176012,0.0001068,97322.0,97321.0,0.5940987]
[1738810179666,0.0001068,97322.0,97321.0,0.9243987]
[1738810179879,0.0001068,97322.0,97321.0,0.9143987]
[1738810180056,0.0001068,97322.0,97321.0,0.9243987]
[1738810181637,0.0001068,97322.0,97321.0,0.9285087]
[1738810190245,5.27e-06,97322.0,97321.0,0.9285087]
[1738810193980,5.27e-06,97322.0,97321.0,1.0826377]
[1738810196193,5.27e-06,97322.0,97321.0,1.0824157]
[1738810201871,5.27e-06,97322.0,97321.0,1.0924157]
[1738810205711,5.27e-06,97322.0,97321.0,0.7721157]
[1738810205912,5.27e-06,97322.0,97321.0,1.3140157]
[1738810206947,5.27e-06,97322.0,97321.0,0.7721157]
[1738810207378,8e-07,97333.0,97322.0,0.15]
[1738810207577,0.0001068,97339.0,97338.0,0.187102]
[1738810207785,0.0001068,97339.0,97338.0,1.64823869]
[1738810207925,0.0001068,97339.0,97338.0,1.64721168]
[1738810208127,0.08245049,97365.0,97364.0,0.154061]
[1738810208328,0.08800455,97365.0,97364.0,0.40654815]
[1738810208526,0.00013918,97365.0,97364.0,0.40654815]
[1738810210333,0.00013918,97365.0,97364.0,0.4384794]
[1738810211467,0.00013918,97365.0,97364.0,0.40654815]
[1738810212707,0.00013918,97365.0,97364.0,0.41712552]
[1738810215709,0.00013918,97365.0,97364.0,0.44012552]
[1738810216094,0.00013918,97365.0,97364.0,0.46032946]
[1738810217099,0.00024598,97365.0,97364.0,0.46032946]
[1738810220179,0.00024598,97365.0,97364.0,0.49219308]
[1738810222314,0.00024598,97365.0,97364.0,0.46032946]
[1738810222475,0.00024598,97365.0,97364.0,0.4921864]
[1738810223086,0.00024598,97365.0,97364.0,0.46032946]
[1738810227027,0.00024598,97365.0,97364.0,0.61032946]
[1738810227232,0.00024598,97365.0,97364.0,0.64217746]
[1738810228424,0.00024598,97365.0,97364.0,0.68957746]
[1738810229454,0.00024598,97365.0,97364.0,0.68980174]
[1738810230642,0.00024598,97365.0,97364.0,0.64240174]
[1738810236456,0.00024598,97365.0,97364.0,1.27360174]
[1738810236739,0.00024598,97365.0,97364.0,1.32220174]
[1738810239918,0.00024598,97365.0,97364.0,1.24290174]
[1738810242464,0.00024598,97365.0,97364.0,1.34290174]
[1738810243973,0.00024598,97365.0,97364.0,1.44290174]
[1738810246026,0.00024598,97365.0,97364.0,1.54290174]
[1738810247046,0.00024598,97365.0,97364.0,1.49430174]
[1738810247464,0.00024598,97365.0,97364.0,1.48430174]
[1738810247678,0.00024598,97365.0,97364.0,1.46130174]
[1738810247887,0.13074598,97365.0,97364.0,0.76940174]
[1738810248061,0.13074598,97365.0,97364.0,0.91940174]
[1738810249991,0.13074598,97365.0,97364.0,0.8991978]
[1738810250583,0.13074598,97365.0,97364.0,0.8673498]
[1738810251078,0.13074598,97365.0,97364.0,0.55271143]
[1738810251542,0.13635051,97365.0,97364.0,0.55271143]
[1738810251748,0.13074598,97365.0,97364.0,0.55271143]
[1738810252526,0.13635005,97365.0,97364.0,0.55271143]
[1738810254095,0.13074598,97365.0,97364.0,0.55271143]
[1738810255722,0.13633766,97365.0,97364.0,0.55271143]
[1738810256304,0.13074598,97365.0,97364.0,0.55271143]
[1738810257680,0.13394477,97365.0,97364.0,0.30022428]
[1738810263859,0.13405157,97365.0,97364.0,0.30022428]
[1738810275093,0.35499834,97365.0,97364.0,0.30022428]
[1738810276522,0.39940299,97365.0,97364.0,0.30022428]
[1738810279497,0.42673841,97365.0,97364.0,0.30022428]
[1738810279721,0.75183841,97365.0,97364.0,0.30022428]
[1738810280388,0.68089164,97365.0,97364.0,0.30022428]
[1738810280835,0.65355622,97365.0,97364.0,0.30022428]
[1738810292612,0.60915157,97365.0,97364.0,0.30022428]
[1738810294411,0.55965157,97365.0,97364.0,0.30022428]
[1738810294619,0.33079879,97365.0,97364.0,0.30022428]
[1738810295244,0.33079879,97365.0,97364.0,0.75429983]
[1738810295449,0.00569879,97365.0,97364.0,0.75429983]
[1738810295655,0.0001068,97365.0,97364.0,0.75429983]
[1738810296446,0.0001068,97365.0,97364.0,0.60023883]
[1738810296656,0.0001068,97365.0,97364.0,0.75429983]
[1738810296859,0.0001068,97365.0,97364.0,0.55303883]
[1738810297441,0.00567854,97365.0,97364.0,0.55303883]
[1738810297740,0.0001068,97365.0,97364.0,0.55303883]
[1738810298313,0.00567854,97365.0,97364.0,0.55303883]
[1738810298519,0.0001068,97365.0,97364.0,0.55303883]
[1738810298719,0.00567801,97365.0,97364.0,0.55303883]
[1738810298895,0.0001068,97365.0,97364.0,0.55303883]
[1738810302479,0.00569066,97365.0,97364.0,0.55303883]
[1738810302692,0.0001068,97365.0,97364.0,0.55303883]
[1738810304033,0.00569068,97365.0,97364.0,0.55303883]
[1738810304704,0.00569068,97365.0,97364.0,0.45053518]
[1738810306731,0.00569068,97365.0,97364.0,0.30022428]
[1738810319898,0.08629068,97365.0,97364.0,0.30022428]
[1738810320053,0.28289068,97365.0,97364.0,0.30022428]
[1738810322361,0.72049433,97365.0,97364.0,0.30022428]
[1738810322573,0.74349433,97365.0,97364.0,0.30022428]
[1738810323543,0.75349433,97365.0,97364.0,0.25607023]
[1738810323773,0.74349433,97365.0,97364.0,0.21498823]
[1738810324006,0.85599798,97365.0,97364.0,0.21498823]
[1738810324424,0.01,97341.0,97334.0,0.08291659]
[1738810324689,0.304106,97335.0,97334.0,0.08291659]
[1738810324912,0.154122,97325.0,97320.0,0.09174428]
[1738810325132,0.205493,97327.0,97320.0,0.09174428]
[1738810325309,0.154127,97322.0,97320.0,0.09174428]
[1738810325690,0.154127,97322.0,97311.0,0.00022428]
[1738810325691,0.15939513,97322.0,97311.0,0.00022428]
[1738810325892,0.15939513,97322.0,97321.0,0.014103]
[1738810326087,0.19588394,97322.0,97321.0,0.014103]
[1738810327272,0.20620322,97322.0,97321.0,0.014103]
[1738810327489,0.28300322,97322.0,97321.0,0.014103]
[1738810329436,0.24651441,97322.0,97321.0,0.014103]
[1738810337925,0.15939513,97322.0,97321.0,0.014103]
[1738810344414,0.24079513,97322.0,97321.0,0.014103]
[1738810344877,0.28949513,97322.0,97321.0,0.014103]
[1738810348166,0.61459513,97322.0,97321.0,0.014103]
[1738810348370,0.71709878,97322.0,97321.0,0.014103]
[1738810356482,0.61459513,97322.0,97321.0,0.014103]
[1738810356696,0.48449513,97322.0,97321.0,0.014103]
[1738810358024,0.48449513,97322.0,97321.0,0.06407885]
[1738810359087,0.48449513,97322.0,97321.0,0.03332448]
[1738810362448,0.48449513,97322.0,97321.0,0.014103]
[1738810362647,0.58699878,97322.0,97321.0,0.014103]
[1738810364551,0.73699878,97322.0,97321.0,0.014103]
[1738810376767,0.63449513,97322.0,97321.0,0.014103]
[1738810379378,0.48449513,97322.0,97321.0,0.014103]
[1738810379781,0.00526813,97322.0,97321.0,0.24660665]
[1738810379952,0.00526813,97322.0,97321.0,0.40613087]
[1738810380153,0.205482,97332.0,97321.0,0.40613087]
[1738810380427,0.154115,97330.0,97322.0,0.26202787]
[1738810380628,0.004096,97331.0,97323.0,0.15952422]
[1738810380840,0.00409593,97329.0,97324.0,0.10250365]
[1738810380963,0.158211,97330.0,97324.0,0.10250365]
[1738810381195,0.00409587,97328.0,97324.0,0.10250365]
[1738810381396,0.00409593,97329.0,97324.0,0.10250365]
[1738810381595,0.00409581,97327.0,97325.0,0.154122]
[1738810381795,0.00402083,97328.0,97326.0,0.10250365]
[1738810382051,0.154109,97334.0,97326.0,0.10250365]
[1738810382405,0.00409277,97333.0,97326.0,0.10250365]
[1738810382612,0.06925579,97333.0,97326.0,0.10250365]
[1738810382812,0.15820277,97333.0,97326.0,0.10250365]
[1738810383041,0.154112,97332.0,97326.0,0.10250365]
[1738810383443,0.00409887,97331.0,97326.0,0.10250365]
[1738810385295,0.15411,97333.0,97326.0,0.10250365]
[1738810385509,0.010227,97340.0,97326.0,0.10250365]
[1738810385736,0.1736438,97340.0,97326.0,0.10250365]
[1738810385862,0.154119,97327.0,97326.0,0.10250365]
[1738810386350,0.15804301,97327.0,97326.0,0.10250365]
[1738810387891,0.154127,97322.0,97321.0,0.014103]
[1738810388066,0.154127,97322.0,97321.0,0.17249698]
[1738810388272,0.2149558,97322.0,97321.0,0.014103]
[1738810389431,0.22538071,97322.0,97321.0,0.014103]
[1738810391910,0.30438071,97322.0,97321.0,0.014103]
[1738810396409,0.45438071,97322.0,97321.0,0.014103]
[1738810396623,0.49948071,97322.0,97321.0,0.014103]
[1738810400040,0.44257611,97322.0,97321.0,0.014103]
[1738810401562,0.76767611,97322.0,97321.0,0.014103]
[1738810401788,0.64357611,97322.0,97321.0,0.014103]
[1738810411498,0.49357611,97322.0,97321.0,0.014103]
[1738810413356,0.16847611,97322.0,97321.0,0.014103]
[1738810413916,0.22643391,97322.0,97321.0,0.014103]
[1738810414669,0.24353574,97322.0,97321.0,0.014103]
[1738810415103,0.18557794,97322.0,97321.0,0.014103]
[1738810415941,0.17515303,97322.0,97321.0,0.11660665]
[1738810416910,0.17515303,97322.0,97321.0,0.19680665]
[1738810417197,0.02102603,97322.0,97321.0,0.19680665]
[1738810417531,0.0039242,97322.0,97321.0,0.19680665]
[1738810417739,0.15412,97327.0,97321.0,0.19680665]
[1738810417927,0.00391409,97326.0,97322.0,0.10250365]
[1738810418118,0.154123,97325.0,97322.0,0.10250365]
[1738810418359,0.00391396,97324.0,97322.0,0.10250365]
[1738810418563,0.15803796,97324.0,97322.0,0.10250365]
[1738810418737,0.00391396,97324.0,97322.0,0.10250365]
[1738810418945,0.154125,97324.0,97322.0,0.10250365]
[1738810419146,0.0039139,97323.0,97322.0,0.10250365]
[1738810421166,0.06185866,97323.0,97322.0,0.10250365]
[1738810421384,0.06185866,97323.0,97321.0,0.014103]
[1738810421713,0.154127,97322.0,97321.0,0.014103]
[1738810422118,0.15804826,97322.0,97321.0,0.014103]
[1738810429323,0.00392126,97322.0,97321.0,0.014103]
[1738810430803,0.003742,97322.0,97321.0,0.014103]
[1738810431157,0.0001069,97328.0,97321.0,0.014103]
[1738810431358,0.003742,97322.0,97321.0,0.014103]
[1738810431522,0.154126,97323.0,97321.0,0.014103]
[1738810431717,0.003742,97322.0,97321.0,0.014103]
[1738810437481,0.003742,97322.0,97321.0,0.11660665]
[1738810437687,0.0001069,97328.0,97322.0,0.0778]
[1738810437900,0.0001069,97328.0,97323.0,0.10250365]
[1738810438106,0.00374375,97327.0,97323.0,0.10250365]
[1738810438964,0.0001069,97328.0,97323.0,0.10250365]
[1738810439174,0.00374378,97326.0,97323.0,0.10250365]
[1738810439370,0.00374384,97327.0,97323.0,0.10250365]
[1738810439583,0.0001069,97328.0,97323.0,0.10250365]
[1738810439584,0.00374372,97325.0,97323.0,0.10250365]
[1738810439772,0.154123,97325.0,97323.0,0.10250365]
[1738810439950,0.154127,97322.0,97321.0,0.014103]
[1738810440158,0.15787149,97322.0,97321.0,0.014103]
[1738810442636,0.00374449,97322.0,97321.0,0.014103]
[1738810445623,0.154126,97323.0,97321.0,0.014103]
[1738810445826,0.0037443,97322.0,97321.0,0.014103]
[1738810448087,0.06064072,97322.0,97321.0,0.014103]
[1738810456352,0.21476772,97322.0,97321.0,0.014103]
[1738810457976,0.1578713,97322.0,97321.0,0.014103]
[1738810459882,0.0037443,97322.0,97321.0,0.014103]
[1738810460267,0.154126,97323.0,97321.0,0.014103]
[1738810460467,0.00374469,97322.0,97321.0,0.014103]
[1738810462088,0.00374469,97322.0,97321.0,0.11660665]
[1738810462498,0.0001069,97328.0,97327.0,0.154119]